fUSD/lending_fUSD_20240625
["ID","MTS","AMOUNT","RATE_DAILY","PERIOD"]
[330390725,1719342637086,-500.0,0.00019178,2]
[330390726,1719342637096,-594.79,0.00019178,2]
[330390727,1719342637109,-500.0,0.00019178,2]
[330390728,1719342637118,-500.0,0.00019178,2]
[330390729,1719342637129,-500.0,0.00019178,2]
[330390730,1719342637139,-1145.39,0.00019178,2]
[330390731,1719342637150,-500.0,0.00019178,2]
[330390732,1719342637161,-500.0,0.00019178,2]
[330390733,1719342637171,-500.0,0.00019178,2]
[330390734,1719342637182,-818.68,0.00019178,2]
[330390735,1719342637192,-894.4,0.00019178,2]
[330390736,1719342637202,-1507.35,0.00019178,2]
[330390737,1719342637213,-500.0,0.00019178,2]
[330390738,1719342637223,-500.0,0.00019178,2]
[330390739,1719342637233,-1697.17,0.00019178,2]
[330390740,1719342637244,-608.3726226,0.00019178,2]
[330390741,1719342637255,-1267.71,0.00019178,2]
[330390742,1719342637266,-1732.18,0.00019178,2]
[330390743,1719342637277,-500.0,0.00019178,2]
[330390744,1719342637288,-2302.39,0.00019178,2]
[330390745,1719342637301,-500.0,0.00019178,2]
[330390746,1719342637311,-500.0,0.00019178,2]
[330390747,1719342637321,-2725.11,0.00019178,2]
[330390748,1719342637331,-632.86,0.00019178,2]
[330390749,1719342637341,-500.0,0.00019178,2]
[330390750,1719342637352,-500.0,0.00019178,2]
[330390751,1719342637362,-500.0,0.00019178,2]
[330390752,1719342637371,-1678.62,0.00019178,2]
[330390753,1719342637382,-500.0,0.00019178,2]
[330390754,1719342637392,-500.0,0.00019178,2]
[330390755,1719342637402,-588.31,0.00019178,2]
[330390756,1719342637412,-1266.67,0.00019178,2]
[330390757,1719342637423,-500.0,0.00019178,2]
[330390758,1719342637433,-500.0,0.00019178,2]
[330390759,1719342637443,-500.0,0.00019178,2]
[330390760,1719342637453,-715.7,0.00019178,2]
[330390761,1719342637463,-1628.63,0.00019178,2]
[330390762,1719342637473,-500.0,0.00019178,2]
[330390763,1719342637483,-500.0,0.00019178,2]
[330390764,1719342637493,-573.02,0.00019178,2]
[330390765,1719342637503,-1710.47,0.00019178,2]
[330390766,1719342637519,-500.0,0.00019178,2]
[330390767,1719342637530,-793.72,0.00019178,2]
[330390768,1719342637540,-696.39,0.00019178,2]
[330390769,1719342637551,-500.0,0.00019178,2]
[330390770,1719342637561,-500.0,0.00019178,2]
[330390771,1719342637571,-4251.76,0.00019178,2]
[330390773,1719342637581,-500.0,0.00019178,2]
[330390775,1719342637592,-1890.85,0.00019178,2]
[330390777,1719342637603,-500.0,0.00019178,2]
[330390778,1719342637614,-908.13,0.00019178,2]
[330390779,1719342637624,-761.6,0.00019178,2]
[330390780,1719342637634,-1184.97,0.00019178,2]
[330390781,1719342637644,-1352.07,0.00019178,2]
[330390782,1719342637655,-500.0,0.00019178,2]
[330390783,1719342637665,-500.0,0.00019178,2]
[330390784,1719342637675,-500.0,0.00019178,2]
[330390785,1719342637684,-500.0,0.00019178,2]
[330390786,1719342637695,-500.0,0.00019178,2]
[330390787,1719342637704,-500.0,0.00019178,2]
[330390788,1719342637718,-520.23,0.00019178,2]
[330390789,1719342637728,-500.0,0.00019178,2]
[330390790,1719342637738,-500.0,0.00019178,2]
[330390791,1719342637748,-500.0,0.00019178,2]
[330390792,1719342637759,-500.0,0.00019178,2]
[330390793,1719342637769,-821.14,0.00019178,2]
[330390794,1719342637779,-825.16,0.00019178,2]
[330390795,1719342637791,-500.0,0.00019178,2]
[330390796,1719342637803,-2049.49,0.00019178,2]
[330390797,1719342637814,-2735.78,0.00019178,2]
[330390798,1719342637824,-500.0,0.00019178,2]
[330390799,1719342637834,-799.8,0.00019178,2]
[330390800,1719342637845,-500.0,0.00019178,2]
[330390801,1719342637857,-500.0,0.00019178,2]
[330390802,1719342637866,-1272.29,0.00019178,2]
[330390803,1719342637876,-702.54,0.00019178,2]
[330390804,1719342637887,-500.0,0.00019178,2]
[330390805,1719342637897,-500.0,0.00019178,2]
[330390806,1719342637907,-500.0,0.00019178,2]
[330390807,1719342637918,-712.61,0.00019178,2]
[330390808,1719342637928,-500.0,0.00019178,2]
[330390810,1719342637938,-512.95786247,0.00019178,2]
[330390812,1719342637949,-500.0,0.00019178,2]
[330390813,1719342637959,-1434.23,0.00019178,2]
[330390814,1719342637970,-500.0,0.00019178,2]
[330390815,1719342637980,-500.0,0.00019178,2]
[330390816,1719342637991,-500.0,0.00019178,2]
[330390817,1719342638001,-500.0,0.00019178,2]
[330390818,1719342638011,-1046.41,0.00019178,2]
[330390819,1719342638021,-500.0,0.00019178,2]
[330390820,1719342638031,-1212.89,0.00019178,2]
[330390821,1719342638042,-500.0,0.00019178,2]
[330390822,1719342638052,-14934.42,0.00019178,2]
[330390823,1719342638063,-500.0,0.00019178,2]
[330390824,1719342638073,-500.0,0.00019178,2]
[330390825,1719342638083,-500.0,0.00019178,2]
[330390826,1719342638093,-616.07,0.00019178,2]
[330390827,1719342638105,-842.83,0.00019178,2]
[330390828,1719342638115,-626.53,0.00019178,2]
[330390829,1719342638126,-943.83,0.00019178,2]
[330390830,1719342638137,-1741.31,0.00019178,2]
[330390831,1719342638147,-810.98,0.00019178,2]
[330390832,1719342638160,-500.0,0.00019178,2]
[330390833,1719342638170,-547.69,0.00019178,2]
[330390834,1719342638180,-1266.97,0.00019178,2]
[330390835,1719342638190,-500.0,0.00019178,2]
[330390836,1719342638200,-500.0,0.00019178,2]
[330390837,1719342638210,-500.0,0.00019178,2]
[330390838,1719342638221,-500.0,0.00019178,2]
[330390839,1719342638231,-1366.16,0.00019178,2]
[330390840,1719342638244,-910.8,0.00019178,2]
[330390841,1719342638254,-641.57,0.00019178,2]
[330390842,1719342638264,-500.0,0.00019178,2]
[330390843,1719342638274,-635.0,0.00019178,2]
[330390844,1719342638284,-500.0,0.00019178,2]
[330390846,1719342638294,-500.0,0.00019178,2]
[330390848,1719342638304,-500.0,0.00019178,2]
[330390850,1719342638314,-500.0,0.00019178,2]
[330390852,1719342638324,-1550.34,0.00019178,2]
[330390854,1719342638334,-500.0,0.00019178,2]
[330390856,1719342638344,-703.94,0.00019178,2]
[330390858,1719342638355,-1386.82,0.00019178,2]
[330390860,1719342638365,-1272.05,0.00019178,2]
[330390862,1719342638375,-4074.64,0.00019178,2]
[330390863,1719342638385,-859.03,0.00019178,2]
[330390864,1719342638396,-500.0,0.00019178,2]
[330390865,1719342638406,-500.0,0.00019178,2]
[330390866,1719342638416,-2238.22,0.00019178,2]
[330390867,1719342638426,-832.8,0.00019178,2]
[330390868,1719342638436,-1166.17,0.00019178,2]
[330390869,1719342638446,-2228.21,0.00019178,2]
[330390870,1719342638455,-998.2,0.00019178,2]
[330390871,1719342638465,-573.54,0.00019178,2]
[330390872,1719342638475,-509.19619108,0.00019178,2]
[330390873,1719342638485,-1658.42,0.00019178,2]
[330390874,1719342638495,-500.0,0.00019178,2]
[330390875,1719342638505,-500.0,0.00019178,2]
[330390876,1719342638515,-587.11525831,0.00019178,2]
[330390877,1719342638526,-500.0,0.00019178,2]
[330390878,1719342638536,-500.0,0.00019178,2]
[330390879,1719342638546,-1423.75,0.00019178,2]
[330390880,1719342638557,-500.0,0.00019178,2]
[330390881,1719342639078,-500.0,0.00019178,2]
[330390882,1719342639089,-2101.32,0.00019178,2]
[330390883,1719342639100,-1061.31,0.00019178,2]
[330390884,1719342639111,-1683.49,0.00019178,2]
[330390885,1719342639121,-500.0,0.00019178,2]
[330390886,1719342639131,-500.0,0.00019178,2]
[330390887,1719342639141,-500.0,0.00019178,2]
[330390888,1719342639152,-504.29866919,0.00019178,2]
[330390889,1719342639163,-2202.73,0.00019178,2]
[330390890,1719342639173,-500.0,0.00019178,2]
[330390891,1719342639184,-610.29,0.00019178,2]
[330390892,1719342639194,-1336.76,0.00019178,2]
[330390893,1719342639204,-3032.71,0.00019178,2]
[330390894,1719342639215,-500.0,0.00019178,2]
[330390895,1719342639225,-1031.48,0.00019178,2]
[330390896,1719342639235,-2712.2,0.00019178,2]
[330390897,1719342639246,-500.0,0.00019178,2]
[330390898,1719342639257,-548.99,0.00019178,2]
[330390899,1719342639268,-1685.51,0.00019178,2]
[330390900,1719342639278,-500.0,0.00019178,2]
[330390901,1719342639289,-194.27740731,0.00019178,2]
[330390902,1719342639299,-836.16,0.00019178,2]
[330390903,1719342639308,-500.0,0.00019178,2]
[330390904,1719342639318,-835.89,0.00019178,2]
[330390905,1719342639328,-1257.73,0.00019178,2]
[330390906,1719342639338,-500.0,0.00019178,2]
[330390907,1719342639348,-562.57,0.00019178,2]
[330390908,1719342639358,-500.0,0.00019178,2]
[330390909,1719342639368,-500.0,0.00019178,2]
[330390910,1719342639378,-500.0,0.00019178,2]
[330390911,1719342639387,-1304.86,0.00019178,2]
[330390912,1719342639402,-758.94,0.00019178,2]
[330390913,1719342639412,-500.0,0.00019178,2]
[330390914,1719342639422,-500.0,0.00019178,2]
[330390915,1719342639431,-500.0,0.00019178,2]
[330390916,1719342639441,-500.0,0.00019178,2]
[330390917,1719342639451,-1171.83,0.00019178,2]
[330390918,1719342639460,-500.0,0.00019178,2]
[330390919,1719342639470,-500.0,0.00019178,2]
[330390920,1719342639480,-500.0,0.00019178,2]
[330390921,1719342639490,-1292.68,0.00019178,2]
[330390922,1719342639500,-830.38,0.00019178,2]
[330390923,1719342639510,-1941.77,0.00019178,2]
[330390924,1719342639520,-500.0,0.00019178,2]
[330390925,1719342639530,-502.69,0.00019178,2]
[330390926,1719342639540,-205.68006489,0.00019178,2]
[330390927,1719342639551,-1035.78,0.00019178,2]
[330390928,1719342639560,-500.0,0.00019178,2]
[330390929,1719342639570,-575.13,0.00019178,2]
[330390930,1719342639581,-3595.03,0.00019178,2]
[330390931,1719342639590,-500.0,0.00019178,2]
[330390932,1719342639600,-716.62,0.00019178,2]
[330390933,1719342639611,-621.96,0.00019178,2]
[330390934,1719342639621,-500.0,0.00019178,2]
[330390935,1719342639633,-2850.6,0.00019178,2]
[330390936,1719342639644,-1329.1,0.00019178,2]
[330390937,1719342639655,-500.0,0.00019178,2]
[330390938,1719342639666,-500.0,0.00019178,2]
[330390939,1719342639677,-500.0,0.00019178,2]
[330390940,1719342639688,-1124.78,0.00019178,2]
[330390941,1719342639699,-818.26,0.00019178,2]
[330390942,1719342639711,-500.0,0.00019178,2]
[330390943,1719342639726,-705.41,0.00019178,2]
[330390944,1719342639737,-545.73487677,0.00019178,2]
[330390945,1719342639748,-1760.17,0.00019178,2]
[330390946,1719342639760,-863.82,0.00019178,2]
[330390947,1719342639771,-500.0,0.00019178,2]
[330390948,1719342639781,-500.0,0.00019178,2]
[330390949,1719342639792,-889.73,0.00019178,2]
[330390950,1719342639804,-2234.56,0.00019178,2]
[330390951,1719342639814,-500.0,0.00019178,2]
[330390952,1719342639826,-721.57,0.00019178,2]
[330390953,1719342639836,-455.48632783,0.00019178,2]
[330390954,1719342639847,-500.0,0.00019178,2]
[330390955,1719342639860,-218.487792,0.00019178,2]
[330390956,1719342639871,-1881.96,0.00019178,2]
[330390957,1719342639881,-5152.26,0.00019178,2]
[330390958,1719342639892,-218.487792,0.00019178,2]
[330390960,1719342639903,-669.51,0.00019178,2]
[330390963,1719342639914,-1905.27,0.00019178,2]
[330390964,1719342639924,-524.09,0.00019178,2]
[330390965,1719342639935,-614.33,0.00019178,2]
[330390966,1719342639945,-500.0,0.00019178,2]
[330390967,1719342639956,-500.0,0.00019178,2]
[330390968,1719342639967,-703.9,0.00019178,2]
[330390969,1719342639977,-1312.59,0.00019178,2]
[330390970,1719342639989,-500.0,0.00019178,2]
[330390971,1719342640000,-500.0,0.00019178,2]
[330390972,1719342640011,-560.93,0.00019178,2]
[330390973,1719342640023,-500.0,0.00019178,2]
[330390974,1719342640034,-834.7,0.00019178,2]
[330390975,1719342640045,-500.0,0.00019178,2]
[330390976,1719342640055,-500.0,0.00019178,2]
[330390977,1719342640066,-677.48,0.00019178,2]
[330390978,1719342640076,-1051.37,0.00019178,2]
[330390979,1719342640086,-1729.05,0.00019178,2]
[330390980,1719342640097,-500.0,0.00019178,2]
[330390981,1719342640108,-500.0,0.00019178,2]
[330390982,1719342640119,-500.0,0.00019178,2]
[330390983,1719342640129,-500.0,0.00019178,2]
[330390984,1719342640140,-642.63,0.00019178,2]
[330390985,1719342640150,-500.0,0.00019178,2]
[330390986,1719342640163,-500.0,0.00019178,2]
[330390987,1719342640174,-985.7,0.00019178,2]
[330390988,1719342640185,-500.0,0.00019178,2]
[330390989,1719342640195,-1604.77,0.00019178,2]
[330390990,1719342640206,-5107.9,0.00019178,2]
[330390991,1719342640216,-500.0,0.00019178,2]
[330390992,1719342640228,-1890.94,0.00019178,2]
[330390993,1719342640238,-1186.36,0.00019178,2]
[330390994,1719342640248,-1382.63,0.00019178,2]
[330390995,1719342640260,-500.0,0.00019178,2]
[330390996,1719342640271,-500.0,0.00019178,2]
[330390997,1719342640281,-500.0,0.00019178,2]
[330390998,1719342640291,-665.41,0.00019178,2]
[330390999,1719342640301,-500.0,0.00019178,2]
[330391000,1719342640312,-500.0,0.00019178,2]
[330391001,1719342640323,-500.0,0.00019178,2]
[330391002,1719342640333,-500.0,0.00019178,2]
[330391003,1719342640343,-1388.71,0.00019178,2]
[330391004,1719342640354,-515.18,0.00019178,2]
[330391005,1719342640366,-576.27,0.00019178,2]
[330391006,1719342640376,-1770.03,0.00019178,2]
[330391007,1719342640385,-500.0,0.00019178,2]
[330391008,1719342640399,-500.0,0.00019178,2]
[330391009,1719342640409,-1981.03,0.00019178,2]
[330391010,1719342640419,-2214.17,0.00019178,2]
[330391011,1719342640429,-553.09,0.00019178,2]
[330391012,1719342640439,-1552.17,0.00019178,2]
[330391013,1719342640449,-500.0,0.00019178,2]
[330391014,1719342640459,-1154.85,0.00019178,2]
[330391015,1719342640469,-1132.31,0.00019178,2]
[330391016,1719342640480,-1173.63,0.00019178,2]
[330391017,1719342640491,-500.0,0.00019178,2]
[330391018,1719342640502,-500.0,0.00019178,2]
[330391019,1719342640511,-680.78,0.00019178,2]
[330391020,1719342640522,-2026.93,0.00019178,2]
[330391021,1719342640532,-500.0,0.00019178,2]
[330391023,1719342640543,-500.0,0.00019178,2]
[330391025,1719342640553,-517.9,0.00019178,2]
[330391027,1719342640563,-500.0,0.00019178,2]
[330391029,1719342640572,-500.0,0.00019178,2]
[330391030,1719342640582,-500.0,0.00019178,2]
[330391031,1719342640591,-477.86854691,0.00019178,2]
[330391032,1719342640601,-34423.82,0.00019178,2]
[330391033,1719342640612,-4473.89,0.00019178,2]
[330391034,1719342640622,-500.0,0.00019178,2]
[330391035,1719342640631,-18010.77938036,0.00019178,2]
[330391036,1719342640680,-5027.59061964,0.00019178,2]
[330391037,1719342640690,-374.17983682,0.00019178,2]
[330391038,1719342640702,-125.82016318,0.00019178,2]
[330391039,1719342640713,-619.85,0.00019178,2]
[330391041,1719342640725,-500.0,0.00019178,2]
[330391043,1719342640735,-500.0,0.00019178,2]
[330391045,1719342640745,-95.3535572,0.00019178,2]
[330391047,1719342640759,-299.99,0.00019178,2]
[330391049,1719342640771,-104.6564428,0.00019178,2]
[330391051,1719342640781,-164.44114368,0.00019178,2]
[330391054,1719342640795,-335.55885632,0.00019178,2]
[330391056,1719342640805,-500.0,0.00019178,2]
[330391058,1719342640816,-501.62,0.00019178,2]
[330391060,1719342640826,-500.0,0.00019178,2]
[330391062,1719342640835,-1786.89,0.00019178,2]
[330391064,1719342640846,-1383.31,0.00019178,2]
[330391066,1719342640856,-1111.49,0.00019178,2]
[330391068,1719342640865,-500.0,0.00019178,2]
[330391070,1719342640875,-1242.19035918,0.00019178,2]
[330391072,1719342640887,-392.48042822,0.00019178,2]
[330391103,1719342641175,181.02431915,0.00014384,2]
[330391261,1719342642893,-314.5431007,0.00019174,2]
[330391263,1719342642904,-64.1041129,0.00019174,2]
[330391264,1719342642914,-363.10007903,0.00019178,2]
[330391265,1719342642926,-603.42913357,0.00019178,2]
[330391266,1719342642934,-77.44384685,0.00019178,2]
[330391267,1719342642958,-422.55615315,0.00019178,2]
[330391268,1719342642967,-101.22665753,0.00019178,2]
[330391269,1719342642978,-276.64042721,0.00019178,2]
[330391280,1719342643675,-10000.0,0.00018414,2]
[330391282,1719342643685,-122.13291526,0.00019178,2]
[330391284,1719342643694,-500.0,0.00019178,2]
[330391286,1719342643703,-500.0,0.00019178,2]
[330391288,1719342643712,-989.73,0.00019178,2]
[330391290,1719342643726,-1005.77,0.00019178,2]
[330391292,1719342643735,-500.0,0.00019178,2]
[330391294,1719342643749,-613.09824605,0.00019178,2]
[330391296,1719342643759,-500.0,0.00019178,2]
[330391298,1719342643768,-1243.75,0.00019178,2]
[330391300,1719342643777,-500.0,0.00019178,2]
[330391302,1719342643786,-680.65,0.00019178,2]
[330391304,1719342643797,-526.88,0.00019178,2]
[330391306,1719342643806,-500.0,0.00019178,2]
[330391308,1719342643816,-500.0,0.00019178,2]
[330391310,1719342643825,-500.0,0.00019178,2]
[330391312,1719342643834,-500.0,0.00019178,2]
[330391314,1719342643843,-726.37,0.00019178,2]
[330391316,1719342643852,-500.0,0.00019178,2]
[330391318,1719342643867,-1540.12,0.00019178,2]
[330391320,1719342643876,-367.97968561,0.00019178,2]
[330391322,1719342643887,-475.2349802,0.00019178,2]
[330391324,1719342643899,-1031.89807045,0.00019178,2]
[330391327,1719342643916,-500.0,0.00019178,2]
[330391373,1719342644472,-336.00726374,0.00019178,2]
[330391375,1719342644482,-2056.58,0.00019178,2]
[330391377,1719342644491,-721.28,0.00019178,2]
[330391379,1719342644501,-500.0,0.00019178,2]
[330391381,1719342644510,-759.97,0.00019178,2]
[330391383,1719342644520,-500.0,0.00019178,2]
[330391385,1719342644529,-623.97,0.00019178,2]
[330391387,1719342644539,-852.99,0.00019178,2]
[330391389,1719342644548,-842.6,0.00019178,2]
[330391391,1719342644557,-500.0,0.00019178,2]
[330391394,1719342644567,-7478.88,0.00019178,2]
[330391396,1719342644576,-1000.9,0.00019178,2]
[330391398,1719342644586,-500.0,0.00019178,2]
[330391400,1719342644594,-500.0,0.00019178,2]
[330391401,1719342644604,-1328.3,0.00019178,2]
[330391404,1719342644615,-666.28,0.00019178,2]
[330391405,1719342644624,-518.79559454,0.00019178,2]
[330391408,1719342644633,-266.84866262,0.00019178,2]
[330391410,1719342644643,-562.28,0.00019178,2]
[330391412,1719342644652,-500.0,0.00019178,2]
[330391414,1719342644661,-500.0,0.00019178,2]
[330391416,1719342644670,-555.15,0.00019178,2]
[330391418,1719342644679,-500.0,0.00019178,2]
[330391420,1719342644689,-824.0,0.00019178,2]
[330391422,1719342644698,-1607.94,0.00019178,2]
[330391424,1719342644707,-500.0,0.00019178,2]
[330391426,1719342644720,-1449.52,0.00019178,2]
[330391428,1719342644730,-500.0,0.00019178,2]
[330391429,1719342644739,-1236.72,0.00019178,2]
[330391431,1719342644748,-500.0,0.00019178,2]
[330391433,1719342644759,-500.0,0.00019178,2]
[330391436,1719342644768,-500.0,0.00019178,2]
[330391438,1719342644777,-500.0,0.00019178,2]
[330391439,1719342644786,-2565.64,0.00019178,2]
[330391442,1719342644797,-4926.13,0.00019178,2]
[330391444,1719342644806,-500.0,0.00019178,2]
[330391445,1719342644816,-500.0,0.00019178,2]
[330391447,1719342644825,-2072.4,0.00019178,2]
[330391449,1719342644835,-500.0,0.00019178,2]
[330391451,1719342644844,-500.0,0.00019178,2]
[330391454,1719342644853,-815.09,0.00019178,2]
[330391456,1719342644864,-514.85,0.00019178,2]
[330391458,1719342644873,-500.0,0.00019178,2]
[330391460,1719342644882,-649.7,0.00019178,2]
[330391462,1719342644891,-500.0,0.00019178,2]
[330391464,1719342644901,-500.0,0.00019178,2]
[330391466,1719342644910,-619.74,0.00019178,2]
[330391468,1719342644920,-7902.59,0.00019178,2]
[330391470,1719342644929,-500.0,0.00019178,2]
[330391486,1719342645047,-5863.6,0.00019178,2]
[330391491,1719342645109,-1455.91,0.00019178,2]
[330391493,1719342645118,-708.21,0.00019178,2]
[330391495,1719342645128,-746.61,0.00019178,2]
[330391497,1719342645137,-527.11,0.00019178,2]
[330391499,1719342645147,-500.0,0.00019178,2]
[330391501,1719342645156,-500.0,0.00019178,2]
[330391503,1719342645166,-557.13,0.00019178,2]
[330391505,1719342645175,-500.0,0.00019178,2]
[330391507,1719342645185,-3672.36,0.00019178,2]
[330391509,1719342645195,-995.35,0.00019178,2]
[330391511,1719342645204,-150.0,0.00019178,2]
[330391513,1719342645214,-593.18,0.00019178,2]
[330391515,1719342645223,-6652.81,0.00019178,2]
[330391517,1719342645232,-500.0,0.00019178,2]
[330391519,1719342645241,-556.72,0.00019178,2]
[330391521,1719342645251,-536.57,0.00019178,2]
[330391523,1719342645260,-500.0,0.00019178,2]
[330391525,1719342645269,-3490.24,0.00019178,2]
[330391527,1719342645279,-4619.73,0.00019178,2]
[330391529,1719342645288,-748.06,0.00019178,2]
[330391531,1719342645297,-631.32397546,0.00019178,2]
[330391533,1719342645306,-500.0,0.00019178,2]
[330391535,1719342645316,-500.0,0.00019178,2]
[330391537,1719342645325,-636.11,0.00019178,2]
[330391539,1719342645335,-500.0,0.00019178,2]
[330391541,1719342645344,-658.15,0.00019178,2]
[330391543,1719342645354,-500.0,0.00019178,2]
[330391545,1719342645365,-1452.19,0.00019178,2]
[330391547,1719342645374,-500.0,0.00019178,2]
[330391549,1719342645383,-2673.12,0.00019178,2]
[330391551,1719342645393,-1380.54,0.00019178,2]
[330391553,1719342645402,-500.0,0.00019178,2]
[330391555,1719342645411,-500.0,0.00019178,2]
[330391557,1719342645421,-500.0,0.00019178,2]
[330391559,1719342645430,-500.0,0.00019178,2]
[330391561,1719342645440,-1162.5,0.00019178,2]
[330391563,1719342645449,-24150.96,0.00019178,2]
[330391566,1719342645459,-4282.79,0.00019178,2]
[330391568,1719342645469,-500.0,0.00019178,2]
[330391570,1719342645478,-1944.59,0.00019178,2]
[330391572,1719342645488,-500.0,0.00019178,2]
[330391574,1719342645498,-1221.98,0.00019178,2]
[330391576,1719342645507,-695.58,0.00019178,2]
[330391578,1719342645517,-748.21,0.00019178,2]
[330391580,1719342645527,-1548.87,0.00019178,2]
[330391583,1719342645537,-1525.88,0.00019178,2]
[330391585,1719342645547,-1865.71,0.00019178,2]
[330391587,1719342645556,-500.0,0.00019178,2]
[330391589,1719342645566,-3399.17,0.00019178,2]
[330391591,1719342645576,-500.0,0.00019178,2]
[330391593,1719342645585,-515.4,0.00019178,2]
[330391595,1719342645595,-1820.64,0.00019178,2]
[330391597,1719342645604,-500.0,0.00019178,2]
[330391599,1719342645616,-950.71,0.00019178,2]
[330391601,1719342645625,-2241.44,0.00019178,2]
[330391603,1719342645634,-682.29,0.00019178,2]
[330391605,1719342645644,-4378.15,0.00019178,2]
[330391608,1719342645654,-500.0,0.00019178,2]
[330391610,1719342645663,-556.99,0.00019178,2]
[330391612,1719342645673,-500.0,0.00019178,2]
[330391614,1719342645682,-992.14,0.00019178,2]
[330391616,1719342645692,-1890.93,0.00019178,2]
[330391618,1719342645701,-784.71,0.00019178,2]
[330391620,1719342645711,-500.0,0.00019178,2]
[330391622,1719342645725,-500.0,0.00019178,2]
[330391624,1719342645735,-796.91,0.00019178,2]
[330391626,1719342645744,-1485.7,0.00019178,2]
[330391628,1719342645755,-500.0,0.00019178,2]
[330391630,1719342645764,-883.52,0.00019178,2]
[330391632,1719342645774,-1456.36,0.00019178,2]
[330391634,1719342645783,-500.0,0.00019178,2]
[330391636,1719342645794,-1767.99,0.00019178,2]
[330391638,1719342645804,-500.0,0.00019178,2]
[330391639,1719342645815,-500.0,0.00019178,2]
[330391641,1719342645824,-500.0,0.00019178,2]
[330391644,1719342645834,-930.35,0.00019178,2]
[330391646,1719342645843,-573.4,0.00019178,2]
[330391647,1719342645853,-500.0,0.00019178,2]
[330391650,1719342645864,-2645.54,0.00019178,2]
[330391652,1719342645873,-549.01,0.00019178,2]
[330391654,1719342645883,-6854.94,0.00019178,2]
[330391656,1719342645892,-500.0,0.00019178,2]
[330391658,1719342645902,-1195.79,0.00019178,2]
[330391660,1719342645911,-1402.67,0.00019178,2]
[330391663,1719342645920,-1418.57,0.00019178,2]
[330391665,1719342645929,-500.0,0.00019178,2]
[330391668,1719342645939,-2301.48,0.00019178,2]
[330391670,1719342645948,-955.04,0.00019178,2]
[330391672,1719342645958,-500.0,0.00019178,2]
[330391676,1719342645967,-797.79,0.00019178,2]
[330391679,1719342645977,-500.0,0.00019178,2]
[330391682,1719342645986,-2139.17,0.00019178,2]
[330391685,1719342645996,-500.0,0.00019178,2]
[330391688,1719342646005,-500.0,0.00019178,2]
[330391691,1719342646015,-540.53,0.00019178,2]
[330391694,1719342646024,-1291.64,0.00019178,2]
[330391697,1719342646034,-500.0,0.00019178,2]
[330391700,1719342646043,-500.0,0.00019178,2]
[330391703,1719342646053,-500.0,0.00019178,2]
[330391706,1719342646062,-500.0,0.00019178,2]
[330391709,1719342646071,-500.0,0.00019178,2]
[330391712,1719342646081,-639.7,0.00019178,2]
[330391715,1719342646091,-500.0,0.00019178,2]
[330391718,1719342646100,-500.0,0.00019178,2]
[330391721,1719342646112,-1130.35,0.00019178,2]
[330391724,1719342646121,-500.0,0.00019178,2]
[330391727,1719342646131,-500.0,0.00019178,2]